bitfinex/quotes_ETHUSD_20220117
["timestamp","ask_amount","ask_price","bid_price","bid_amount"]
[1642386748581,7.499,3317.1,3316.8,1.23735945]
[1642386749416,7.499,3317.1,3316.7,0.00113684]
[1642386749613,7.499,3317.1,3316.9,2.57935944]
[1642386750014,7.799,3317.1,3316.9,2.57935944]
[1642386750613,7.799,3317.1,3316.8,1.45783943]
[1642386751015,7.499,3317.1,3316.9,2.58809903]
[1642386751216,7.499,3317.1,3316.9,3.32719903]
[1642386751414,7.499,3317.1,3317.0,14.46008764]
[1642386751614,7.499,3317.1,3317.0,13.41008764]
[1642386751816,7.50013685,3317.1,3317.0,13.41008764]
[1642386752014,7.50013685,3317.1,3317.0,12.41008764]
[1642386752616,7.50013685,3317.1,3317.0,2.66008764]
[1642386753067,7.80013685,3317.1,3317.0,5.23944708]
[1642386754066,7.80013685,3317.1,3317.0,2.57935944]
[1642386755868,7.80013685,3317.1,3316.7,2.58049628]
[1642386756371,7.80013685,3317.1,3316.7,5.05235199]
[1642386757229,7.50013685,3317.1,3317.0,1.15662146]
[1642386757827,7.50013685,3317.1,3317.0,3.67236865]
[1642386758028,7.50013685,3317.1,3317.0,2.51574719]
[1642386758229,7.50013685,3317.1,3317.0,5.09510663]
[1642386758427,7.50013685,3317.1,3317.0,2.57935944]
[1642386758629,7.80013685,3317.1,3317.0,2.57935944]
[1642386759231,7.80013685,3317.1,3317.0,5.08904376]
[1642386759431,7.80013685,3317.1,3317.0,5.18022756]
[1642386759734,7.80013685,3317.1,3317.0,2.57935944]
[1642386760575,7.80013685,3317.1,3316.8,5.28756599]
[1642386760770,7.80013685,3317.1,3316.8,2.57935944]
[1642386761571,7.80013685,3317.1,3316.8,5.09302116]
[1642386763275,7.80013685,3317.1,3316.9,2.57935944]
[1642386763476,7.80013685,3317.1,3317.0,2.49662387]
[1642386763674,7.80013685,3317.1,3316.9,2.57935944]
[1642386764316,8.10013685,3317.1,3316.9,2.57935944]
[1642386764717,7.80013685,3317.1,3316.9,2.57935944]
[1642386764920,7.80013685,3317.1,3316.7,0.00113684]
[1642386765314,7.80013685,3317.1,3316.7,2.6517248]
[1642386765516,7.80013685,3317.1,3316.7,2.65286164]
[1642386765919,7.80013685,3317.1,3316.7,1.16621104]
[1642386766720,7.80013685,3317.1,3316.8,2.43909585]
[1642386767773,7.80013685,3317.1,3316.9,2.57935944]
[1642386770174,7.80013685,3317.1,3316.8,2.57935944]
[1642386771520,7.80013685,3317.1,3317.0,2.57935944]
[1642386772418,7.80013685,3317.1,3316.7,0.00113684]
[1642386772721,7.80013685,3317.1,3316.6,0.00170527]
[1642386773019,2.10699846,3316.8,3316.6,0.00170527]
[1642386773419,2.40699846,3316.8,3316.6,0.00170527]
[1642386773617,1.3538,3316.8,3316.6,0.00170527]
[1642386775875,1.0538,3316.8,3316.6,0.00170527]
[1642386776074,1.0538,3316.8,3316.4,0.00284211]
[1642386776676,1.3538,3316.8,3316.4,0.00284211]
[1642386777274,2.63595537,3316.8,3316.4,0.00284211]
[1642386784970,1.3538,3316.8,3316.4,0.00284211]
[1642386786918,1.3538,3316.8,3316.4,2.58220155]
[1642386787216,1.3538,3316.8,3316.5,0.00227369]
[1642386787418,2.3538,3316.8,3316.5,0.00227369]
[1642386788217,1.3538,3316.8,3316.5,0.00227369]
[1642386789020,1.3538,3316.8,3316.4,0.00284211]
[1642386789919,2.3538,3316.8,3316.4,0.00284211]
[1642386793073,1.3538,3316.8,3316.4,0.00284211]
[1642386793775,0.75389,3316.7,3316.4,0.00284211]
[1642386794040,0.3,3316.5,3316.4,0.00284211]
[1642386794429,0.3,3316.6,3316.4,0.00284211]
[1642386794430,0.6,3316.6,3316.4,0.00284211]
[1642386795428,0.3,3316.6,3316.4,0.00284211]
[1642386796931,0.6,3316.6,3316.4,0.00284211]
[1642386799376,1.95155988,3316.7,3316.4,0.00284211]
[1642386800378,1.95155988,3316.7,3316.3,2.57935944]
[1642386800379,8.834,3316.6,3316.3,2.57935944]
[1642386800775,1.7541,3316.5,3316.3,2.57935944]
[1642386800975,5.25,3316.4,3315.5,4.24973373]
[1642386801176,1.40975389,3315.9,3315.5,4.24973373]
[1642386801382,0.3,3315.9,3315.6,0.00454739]
[1642386801830,0.3,3316.2,3315.6,0.00454739]
[1642386802032,0.75406,3316.1,3315.6,0.00454739]
[1642386802233,0.3,3316.2,3315.6,0.00454739]
[1642386802630,0.3,3316.2,3315.5,0.00511581]
[1642386802834,0.3,3316.2,3315.4,1.35030745]
[1642386803231,0.3,3316.2,3315.5,0.00511581]
[1642386803830,0.3,3316.2,3315.2,2.73543021]
[1642386803831,0.75399,3316.1,3315.2,2.74225129]
[1642386804034,0.7541,3315.9,3315.3,0.00625266]
[1642386804532,0.75399,3316.1,3315.0,3.71455817]
[1642386804533,0.3,3315.8,3315.2,1.13379186]
[1642386804731,0.3,3315.8,3315.3,2.49546601]
[1642386804933,1.05399,3316.1,3315.3,0.00625266]
[1642386805133,1.05399,3316.1,3315.4,0.00568424]
[1642386805382,1.05399,3316.1,3315.3,2.48355856]
[1642386805577,1.05399,3316.1,3315.4,0.00568424]
[1642386805978,1.35399,3316.1,3315.4,0.00568424]
[1642386806378,0.3,3316.1,3315.4,0.00568424]
[1642386808182,1.74531202,3316.1,3315.4,0.00568424]
[1642386809227,0.754,3316.0,3315.4,0.00568424]
[1642386809624,0.3,3315.9,3315.3,0.00625266]
[1642386810826,1.74531202,3316.1,3315.3,0.00625266]
[1642386811025,2.04531202,3316.1,3315.2,0.00682108]
[1642386811924,2.04531202,3316.1,3315.3,1.17263603]
[1642386812125,0.754,3316.0,3315.3,1.17263603]
[1642386812325,0.754,3316.0,3315.4,0.00568424]
[1642386812326,0.3,3315.9,3315.4,0.00568424]
[1642386813280,0.3,3315.9,3315.2,0.00682108]
[1642386813481,0.6,3315.9,3315.2,0.00682108]
[1642386813679,0.3,3315.9,3315.2,0.00682108]
[1642386813880,2.04531202,3316.1,3315.1,2.56267331]
[1642386814080,2.04531202,3316.1,3315.4,1.34930258]
[1642386814081,0.6,3316.1,3315.4,1.34930258]
[1642386814285,0.3,3316.1,3315.5,2.64136781]
[1642386814480,0.3,3316.1,3315.5,2.64648362]
[1642386814880,1.18333684,3316.6,3315.5,2.64648362]
[1642386815085,2.48333684,3316.6,3315.5,2.48270851]
[1642386815280,1.32909869,3316.0,3315.5,0.00511581]
[1642386815481,1.62909869,3316.0,3315.5,0.00511581]
[1642386815680,1.92909869,3316.0,3315.3,0.00625266]
[1642386816523,0.3,3315.8,3315.3,0.00625266]
[1642386817525,2.92909869,3316.0,3315.2,0.00682108]
[1642386817724,0.75403,3315.9,3314.9,0.00852635]
[1642386817927,0.3,3315.8,3314.9,0.00852635]
[1642386818327,0.3,3315.8,3315.1,1.45882055]
[1642386818525,1.92909869,3316.0,3315.2,2.62066424]
[1642386818726,0.434,3316.4,3315.2,2.62748532]
[1642386818925,0.434,3316.4,3315.3,0.00625266]
[1642386819325,0.75395,3316.3,3315.3,0.00625266]
[1642386819529,0.75399,3316.2,3315.3,0.00625266]
[1642386819925,0.3,3316.1,3315.3,0.00625266]
[1642386820130,0.6,3316.1,3315.3,0.00625266]
[1642386820777,1.18979046,3315.8,3315.2,0.00682108]
[1642386820975,1.78979046,3315.8,3315.2,0.00682108]
[1642386821575,2.09289046,3315.8,3315.3,2.58026691]
[1642386821974,0.3031,3315.8,3315.4,0.00568424]
[1642386822179,1.50809,3315.9,3315.4,0.00568424]
[1642386822574,2.2621899,3315.9,3315.4,0.00568424]
[1642386823177,0.3,3315.8,3315.4,0.00568424]
[1642386823376,1.14720002,3315.7,3315.4,0.00568424]
[1642386823575,0.7541889,3315.6,3315.4,0.00568424]
[1642386823877,1.09058377,3315.6,3315.4,0.00568424]
[1642386824325,1.09058377,3315.6,3314.9,0.00852635]
[1642386824326,0.75426,3315.5,3314.9,0.00852635]
[1642386824630,0.3,3315.4,3314.9,0.00852635]
[1642386824833,1.2774,3315.4,3314.9,0.00852635]
[1642386825025,1.44613738,3315.2,3314.9,0.00852635]
[1642386825230,2.63446538,3315.2,3314.9,0.00852635]
[1642386825430,1.26183524,3315.1,3314.9,0.00852635]
[1642386825628,1.86183524,3315.1,3314.9,0.00852635]
[1642386825827,1.35433,3315.1,3314.9,0.00852635]
[1642386826029,0.6,3315.1,3314.9,0.00852635]
[1642386826226,0.3,3315.1,3314.9,0.00852635]
[1642386826428,0.434,3315.6,3314.9,0.00852635]
[1642386826626,1.4465,3315.7,3314.9,1.23314747]
[1642386826826,0.3,3315.6,3315.0,2.47823373]
[1642386827025,4.96214,3315.9,3315.0,2.48619166]
[1642386827226,0.3,3315.6,3315.1,0.00738951]
[1642386827430,1.0,3315.8,3315.1,0.00738951]
[1642386827625,1.0,3315.8,3315.0,2.58843725]
[1642386827626,1.3,3315.8,3315.0,2.58843725]
[1642386827885,4.2081,3315.9,3315.0,5.0927651]
[1642386828084,4.2081,3315.9,3315.5,1.11535897]
[1642386828085,4.96214,3315.9,3315.5,1.11535897]
[1642386828283,1.35404,3315.9,3315.5,1.11535897]
[1642386828481,1.35404,3315.9,3315.1,0.00738951]
[1642386828883,3.45813,3316.2,3315.1,0.00738951]
[1642386828884,1.1955,3316.2,3315.4,0.3594]
[1642386829084,7.19373684,3316.6,3315.5,3.20055582]
[1642386829282,7.19373684,3316.6,3315.5,3.20567163]
[1642386829684,3.96593684,3316.6,3315.5,3.20567163]
[1642386829883,3.96593684,3316.6,3315.8,1.17994347]
[1642386830091,3.96593684,3316.6,3315.9,2.56167523]
[1642386830282,3.96593684,3316.6,3315.9,0.00284212]
[1642386830283,1.20913888,3316.5,3315.9,0.00284212]
[1642386830484,1.20913888,3316.5,3316.0,0.0022737]
[1642386830684,1.20913888,3316.5,3315.9,0.00284212]
[1642386830983,0.3,3316.3,3315.7,0.00397897]
[1642386831835,0.3,3316.3,3315.7,2.58445829]
[1642386832338,0.3,3316.3,3315.8,0.00341054]
[1642386832738,0.3,3316.3,3315.7,0.00397897]
[1642386834237,1.5080619,3316.2,3315.7,0.00397897]
[1642386834439,0.3,3316.1,3315.7,0.00397897]
[1642386834638,0.6,3316.1,3315.7,0.00397897]
[1642386834838,0.75404,3316.0,3315.7,0.00397897]
[1642386835039,0.3,3315.9,3315.7,0.00397897]
[1642386835481,0.3,3315.9,3315.4,0.00568424]
[1642386835680,0.3,3315.9,3315.3,1.35294912]
[1642386835881,0.3,3315.9,3315.4,0.00568424]
[1642386836381,0.3,3315.9,3315.5,2.58030489]
[1642386839230,1.05407,3315.9,3315.5,2.58030489]
[1642386839634,0.3,3315.8,3315.5,2.58030489]
[1642386839940,2.29650922,3315.7,3315.5,2.58030489]
[1642386840233,1.79326396,3315.6,3315.5,2.58030489]
[1642386840437,1.79326396,3315.6,3315.4,0.00568424]
[1642386840633,1.79326396,3315.6,3315.5,0.00511581]
[1642386840634,1.6,3315.6,3315.5,0.00511581]
[1642386840833,0.6,3315.6,3314.9,0.00852635]
[1642386841533,0.6,3315.6,3315.0,1.45307076]
[1642386841735,0.3,3315.6,3315.2,1.38372453]
[1642386842136,0.6,3315.9,3315.3,0.00625266]
[1642386842336,0.3,3315.9,3315.3,0.00625266]
[1642386842536,0.3,3316.1,3315.3,0.00625266]
[1642386842792,0.754,3316.0,3315.3,2.58659505]
[1642386842988,0.3,3315.9,3315.3,2.58659505]
[1642386843180,0.3,3315.9,3315.4,0.00568424]
[1642386843582,0.3,3315.9,3315.4,2.58602663]
[1642386843981,0.3,3315.9,3315.5,0.00511581]
[1642386844884,0.6,3316.1,3315.5,0.00511581]
[1642386845383,0.6,3316.1,3315.3,0.00625266]
[1642386845785,0.6,3316.1,3315.6,2.58030667]
[1642386845983,1.50786,3316.4,3315.7,1.3196244]
[1642386846184,1.23255008,3316.6,3315.7,1.3196244]
[1642386846185,1.195,3316.6,3315.8,2.9139991]
[1642386846384,1.195,3316.6,3315.8,2.91740964]
[1642386846635,0.75385,3316.8,3315.7,1.3196244]
[1642386846636,0.75385,3316.8,3315.9,0.00284212]
[1642386846934,1.16687886,3316.7,3315.9,0.00284212]
[1642386847237,2.67642413,3316.7,3315.8,0.00341054]
[1642386847434,2.71494711,3316.7,3315.8,0.00341054]
[1642386847636,2.26343527,3316.7,3315.8,2.58371721]
[1642386847835,0.75559527,3316.7,3315.8,2.58371721]
[1642386848035,0.75559527,3316.7,3315.9,0.00284212]
[1642386848634,0.75559527,3316.7,3315.9,2.58314879]
[1642386848836,0.00170527,3316.7,3315.9,2.58314879]
[1642386849038,0.00170527,3316.7,3316.0,0.0022737]
[1642386849736,0.00170527,3316.7,3315.9,0.00284212]
[1642386850140,0.00170527,3316.7,3316.0,2.58030667]
[1642386850388,1.50788,3316.6,3316.0,2.58030667]
[1642386850591,0.75395,3316.4,3316.1,0.00170527]
[1642386850796,1.01195,3316.4,3316.1,0.00170527]
[1642386850994,1.31195,3316.4,3316.1,0.00170527]
[1642386851889,0.75395,3316.3,3315.9,0.00284212]
[1642386852089,0.3,3316.1,3315.9,0.00284212]
[1642386852692,0.3,3316.1,3315.7,0.00397897]
[1642386852991,0.3,3316.4,3315.7,0.00397897]
[1642386853191,0.3,3316.1,3315.7,2.58428564]
[1642386853396,0.3,3316.4,3315.7,2.58428564]
[1642386853592,0.6,3316.6,3315.8,0.00341054]
[1642386854041,1.0,3316.6,3316.0,1.46621747]
[1642386854243,1.0,3316.6,3315.8,2.58371721]
[1642386854442,0.60170527,3316.7,3315.8,2.58371721]
[1642386854443,1.60170527,3316.7,3316.1,0.00170527]
[1642386854643,0.60170527,3316.7,3315.9,0.00284212]
[1642386854844,0.30170527,3316.7,3315.9,0.00284212]
[1642386855044,1.05556527,3316.7,3315.9,0.00284212]
[1642386855243,2.73250527,3316.6,3315.9,0.00284212]
[1642386855443,2.73904118,3316.6,3315.9,0.00284212]
[1642386855644,1.0,3316.5,3315.9,0.00284212]
[1642386855845,1.3,3316.5,3315.9,0.00284212]
[1642386856049,0.3,3316.5,3315.8,0.00341054]
[1642386856249,0.3,3316.6,3315.8,0.00341054]
[1642386856250,1.6,3316.6,3315.8,0.00341054]
[1642386856451,0.3,3316.4,3315.8,0.00341054]
[1642386856647,0.6,3316.6,3315.8,0.00341054]
[1642386857349,0.79442716,3316.7,3315.8,0.00341054]
[1642386857804,0.79442716,3316.7,3315.8,2.58371721]
[1642386857988,0.00170527,3316.7,3315.8,2.58371721]
[1642386858187,0.00170527,3316.7,3315.9,2.4607393]
[1642386858488,0.00170527,3316.7,3316.0,0.0022737]
[1642386859086,0.30170527,3316.7,3316.0,0.0022737]
[1642386859288,1.05558527,3316.7,3316.2,1.15379009]
[1642386859492,0.3,3316.6,3316.2,1.15379009]
[1642386860489,0.6,3316.6,3316.2,1.15379009]
[1642386861091,0.6,3316.6,3316.0,0.0022737]
[1642386861532,0.6,3316.6,3315.9,2.47116349]
[1642386861932,0.6,3316.6,3316.0,0.0022737]
[1642386862133,0.6,3316.6,3316.2,1.12566817]
[1642386863434,0.6,3316.6,3316.0,0.0022737]
[1642386863837,0.63987996,3316.6,3315.9,0.00284212]
[1642386864035,0.3,3316.5,3315.9,0.00284212]
[1642386864436,1.82285261,3316.6,3315.9,2.58293655]
[1642386864834,1.82285261,3316.6,3316.0,0.0022737]
[1642386865134,1.07322266,3316.6,3316.0,0.0022737]
[1642386865410,1.034,3316.6,3316.0,0.0022737]
[1642386866209,1.034,3316.6,3315.9,0.00284212]
[1642386866712,1.034,3316.6,3315.9,2.58292507]
[1642386867108,1.78791,3316.6,3316.0,0.0022737]
[1642386867307,1.81869069,3316.6,3316.0,0.0022737]
[1642386868310,2.57260069,3316.6,3316.0,0.0022737]
[1642386868511,1.0,3316.5,3316.0,0.0022737]
[1642386868913,1.3,3316.5,3316.0,0.0022737]
[1642386871750,1.942082,3316.4,3316.0,0.0022737]
[1642386871950,2.26224,3316.3,3316.0,0.0022737]
[1642386872153,0.434,3316.2,3316.0,0.0022737]
[1642386872350,0.3,3316.1,3316.0,0.0022737]
[1642386872550,6.49291718,3316.1,3316.0,0.0022737]
[1642386872792,6.49291718,3316.1,3315.6,2.58008295]
[1642386872793,1.508372,3316.0,3315.6,2.58008295]
[1642386872993,3.2965812,3315.9,3315.7,0.00170527]
[1642386873193,3.33086073,3315.9,3315.7,0.00170527]
[1642386873492,1.3,3315.8,3315.7,0.00170527]
[1642386873694,1.734,3315.8,3315.7,0.00170527]
[1642386874097,2.8836075,3315.8,3315.3,0.00397896]
[1642386874291,0.75424,3315.7,3315.3,0.00397896]
[1642386874492,1.18826,3315.6,3315.3,0.00397896]
[1642386874693,3.0323827,3315.6,3315.3,0.00397896]
[1642386874893,4.0323827,3315.6,3315.3,0.00397896]
[1642386875693,4.0323827,3315.6,3315.0,0.00568423]
[1642386876645,1.53944546,3315.5,3315.0,0.00568423]
[1642386876838,1.53944546,3315.5,3314.8,0.1616074]
[1642386876839,1.53944546,3315.5,3314.9,0.00625265]
[1642386877042,0.3,3315.4,3314.9,0.00625265]
[1642386877440,0.3,3315.4,3315.1,2.58066741]
[1642386877839,0.3,3315.4,3315.2,0.00454738]
[1642386878642,0.3,3315.4,3315.1,0.00511581]
[1642386879248,0.3,3315.4,3315.1,2.45529699]
[1642386879443,1.6,3315.5,3315.1,2.45529699]
[1642386879644,0.434,3315.6,3315.2,0.00454738]
[1642386880394,0.434,3315.6,3315.2,2.58503818]
[1642386880788,0.33574936,3315.6,3315.3,0.00397896]
[1642386880988,0.63574936,3315.6,3315.3,0.00397896]
[1642386881794,0.63574936,3315.6,3315.1,0.00511581]
[1642386881988,0.63574936,3315.6,3315.1,2.43917086]
[1642386882189,0.63574936,3315.6,3315.1,0.00511581]
[1642386882390,0.63574936,3315.6,3315.2,0.00454738]
[1642386882391,0.7541522,3315.5,3315.2,0.00454738]
[1642386882590,1.0541522,3315.5,3315.1,0.00511581]
[1642386882791,0.3,3315.5,3314.9,0.00625265]
[1642386882991,0.3,3315.6,3314.9,0.00625265]
[1642386883391,0.3,3315.8,3314.9,0.00625265]
[1642386883592,1.88421028,3315.9,3315.1,1.08848807]
[1642386883894,0.33811028,3315.9,3315.2,2.47272612]
[1642386884151,1.09282109,3315.9,3315.2,2.47272612]
[1642386884348,1.09282109,3315.9,3315.3,0.00397896]
[1642386884543,0.3,3315.8,3315.3,0.00397896]
[1642386884942,0.3,3315.8,3315.3,2.58049983]
[1642386885145,0.00227369,3315.7,3315.3,2.58049983]
[1642386885342,0.30227369,3315.7,3315.3,2.58049983]
[1642386885548,0.00170527,3315.6,3315.3,2.58049983]
[1642386885943,0.3,3315.7,3315.3,2.58049983]
[1642386885944,0.00113685,3315.5,3315.3,2.58049983]
[1642386886343,0.00170527,3315.6,3315.3,2.58049983]
[1642386886544,0.00170527,3315.6,3315.2,2.58049983]
[1642386886742,0.3,3315.7,3315.2,2.58049983]
[1642386886743,0.00113685,3315.5,3315.2,2.58049983]
[1642386887145,0.00170527,3315.6,3315.2,2.58049983]
[1642386887343,0.00170527,3315.6,3314.8,0.1616074]
[1642386887545,0.00113685,3315.5,3314.8,0.1616074]
[1642386887811,0.78681704,3315.4,3314.9,0.00227369]
[1642386888017,0.3,3315.3,3314.9,0.00227369]
[1642386888212,0.6,3315.3,3314.9,2.58287534]
[1642386888609,0.6,3315.3,3315.0,0.00170527]
[1642386888810,0.6,3315.3,3315.0,2.54227206]
[1642386889210,0.6,3315.3,3315.1,0.00113685]
[1642386889812,0.6,3315.3,3315.1,2.5817385]
[1642386890215,0.6,3315.3,3315.2,2.42393766]
[1642386890814,0.30113685,3315.5,3315.2,2.42393766]
[1642386891415,0.30113685,3315.5,3315.1,2.67936301]
[1642386891646,0.30113685,3315.5,3315.1,0.09876136]
[1642386892258,0.78611354,3315.4,3315.1,0.09876136]
[1642386892446,0.6,3315.3,3315.1,0.09876136]
[1642386896591,0.6,3315.3,3315.1,2.54539025]
[1642386896793,0.3,3315.3,3315.1,0.09876136]
[1642386897092,0.30113685,3315.5,3315.1,0.09876136]
[1642386897492,0.30113685,3315.5,3315.1,2.50414828]
[1642386897698,0.30113685,3315.5,3315.1,0.09876136]
[1642386899848,0.7540925,3315.4,3315.1,0.09876136]
[1642386900244,0.6,3315.3,3315.1,0.09876136]
[1642386901244,0.6,3315.3,3315.1,2.51110624]
[1642386901445,0.6,3315.3,3315.1,2.62769348]
[1642386901644,0.3,3315.3,3315.1,2.62769348]
[1642386901845,0.30113685,3315.5,3315.1,2.62769348]
[1642386902644,0.30113685,3315.5,3315.2,2.58052937]
[1642386902896,0.30113685,3315.5,3315.3,2.47604633]
[1642386903494,0.29721348,3315.5,3315.3,2.47604633]
[1642386903700,0.29721348,3315.5,3315.2,2.58052937]
[1642386903894,0.00113685,3315.5,3315.2,2.58052937]
[1642386904095,0.00113685,3315.5,3315.3,2.43077493]
[1642386904897,0.00113685,3315.5,3315.1,2.76954678]
[1642386905100,0.00113685,3315.5,3315.1,0.09876136]
[1642386905300,0.30113685,3315.5,3315.1,0.09876136]
[1642386905698,0.30113685,3315.5,3315.2,2.58045884]
[1642386905899,0.00113685,3315.5,3315.2,2.58045884]
[1642386906300,0.00113685,3315.5,3315.3,2.62811936]
[1642386908543,0.00113685,3315.5,3315.4,11.03045884]
[1642386909144,0.03551754,3316.9,3315.5,11.75]
[1642386909344,7.5334562,3317.1,3315.6,3.29620299]
[1642386909545,0.00227369,3315.9,3315.7,1.0]
[1642386909746,0.00227369,3315.9,3315.8,13.6106737]
[1642386909946,7.499,3317.1,3315.8,13.6106737]
[1642386910145,7.499,3317.1,3316.8,1.26420063]
[1642386910401,7.499,3317.1,3316.8,1.96380063]
[1642386910402,0.00852635,3317.0,3316.8,1.96380063]
[1642386910794,0.00795792,3316.9,3316.8,1.96380063]
[1642386911395,0.00795792,3316.9,3316.8,4.59112473]
[1642386911595,0.00795792,3316.9,3316.8,0.6996]
[1642386911796,0.00795792,3316.9,3316.7,0.2105]
[1642386911995,0.00795792,3316.9,3316.4,2.42562428]
[1642386912196,0.0073895,3316.8,3316.4,2.42562428]
[1642386912595,0.00682108,3316.7,3316.4,2.42562428]
[1642386913002,0.00625265,3316.6,3316.4,2.42562428]
[1642386913296,0.00568423,3316.5,3316.4,2.42562428]
[1642386914149,0.00568423,3316.5,3316.4,4.90014535]
[1642386915848,0.00568423,3316.5,3316.4,4.89973793]
[1642386916048,0.00568423,3316.5,3316.4,4.93949281]
[1642386916247,0.00568423,3316.5,3316.4,4.93545439]
[1642386916463,0.00568423,3316.5,3316.4,2.43982964]
[1642386916653,0.00568423,3316.5,3316.4,8.39966901]
[1642386918499,0.00568423,3316.5,3316.4,9.39966901]
[1642386920808,0.00568423,3316.5,3316.4,4.89966901]
[1642386921001,0.00568423,3316.5,3316.4,2.43982964]
[1642386921402,0.00568423,3316.5,3316.4,4.9064787]
[1642386921648,0.00568423,3316.5,3316.4,9.2064787]
[1642386921849,7.30468423,3317.1,3316.5,7.3]
[1642386922047,5.769,3317.5,3316.6,3.01292358]
[1642386922254,0.00284212,3317.0,3316.6,3.01292358]
[1642386922648,0.00227369,3316.9,3316.6,3.01292358]
[1642386923049,0.00170527,3316.8,3316.6,3.01292358]
[1642386923453,0.00113685,3316.7,3316.6,3.01292358]
[1642386924048,0.00113685,3316.7,3316.4,4.92645592]
[1642386925499,0.00113685,3316.7,3316.4,2.43982964]
[1642386926006,0.00113685,3316.7,3316.5,2.42969787]
[1642386928400,0.00113685,3316.7,3316.5,4.80099787]
[1642386928604,0.00113685,3316.7,3316.6,13.09779567]
[1642386929751,0.00113685,3316.7,3316.6,12.97916979]
[1642386929951,0.00113685,3316.7,3316.6,2.57916979]
[1642386931547,7.75613685,3316.8,3316.6,2.57916979]
[1642386932247,7.75613685,3316.8,3316.4,2.43982964]
[1642386932646,7.75613685,3316.8,3316.5,0.00113685]
[1642386938847,7.85613685,3316.8,3316.5,0.00113685]
[1642386940896,2.92671908,3316.7,3316.5,0.00113685]
[1642386941096,3.92671908,3316.7,3316.0,0.00397897]
[1642386941297,3.92671908,3316.7,3316.4,0.09762451]
[1642386941997,5.43447878,3316.7,3316.4,0.09762451]
[1642386942197,5.25143436,3316.7,3316.4,0.09762451]
[1642386942397,0.6,3316.6,3316.4,0.09762451]
[1642386946947,5.08572428,3316.7,3316.4,0.09762451]
[1642386947141,2.39284426,3316.7,3316.4,0.09762451]
[1642386948398,1.63896456,3316.7,3316.4,0.09762451]
[1642386949302,0.0127017,3316.5,3314.8,2.45104709]
[1642386949506,0.01207463,3316.0,3315.3,3.86905955]
[1642386949703,1.68366,3315.9,3315.3,3.86905955]
[1642386949900,0.3,3315.8,3315.3,3.86905955]
[1642386950101,0.434,3315.7,3315.3,3.86905955]
[1642386950501,0.734,3315.7,3315.6,1.56265101]
[1642386950807,0.734,3315.7,3315.6,1.5649247]
[1642386950808,0.434,3315.7,3315.6,1.5649247]
[1642386951002,0.434,3315.7,3315.6,0.00227369]
[1642386951401,0.434,3315.7,3315.4,0.00341054]
[1642386951670,0.434,3315.7,3315.3,0.00397896]
[1642386951671,0.234,3315.7,3315.3,0.00397896]
[1642386951965,0.234,3315.7,3315.4,1.12804955]
[1642386952360,0.234,3315.7,3315.5,0.00284211]
[1642386954665,0.234,3315.7,3315.3,0.00397896]
[1642386954861,0.184,3315.7,3315.6,0.01004267]
[1642386955295,0.184,3315.7,3315.6,1.33603228]
[1642386955695,0.184,3315.7,3315.6,0.01231636]
[1642386956099,0.184,3315.7,3315.6,1.19586174]
[1642386956698,0.184,3315.7,3315.6,2.66682099]
[1642386956898,6.17437362,3316.5,3315.6,2.66682099]
[1642386956899,0.434,3316.3,3315.6,2.66682099]
[1642386957098,0.734,3316.3,3315.6,2.66682099]
[1642386957304,0.00113685,3316.2,3315.7,0.00170527]
[1642386958101,0.01270867,3315.9,3315.7,0.00170527]
[1642386958299,12.184,3315.8,3315.7,0.00170527]
[1642386958499,12.484,3315.8,3315.7,0.00170527]
[1642386958903,13.484,3315.8,3315.7,0.00170527]
[1642386959743,13.484,3315.8,3315.7,0.0126179]
[1642386963400,1.734,3315.8,3315.7,0.0126179]
[1642386963599,0.734,3315.8,3315.7,0.0126179]
[1642386963801,0.434,3315.8,3315.7,0.0126179]
[1642386964001,1.2256,3316.1,3315.7,1.12916022]
[1642386964200,0.00113685,3316.2,3315.7,1.12916022]
[1642386964401,0.00113685,3316.2,3315.8,0.00113684]
[1642386969951,0.00113685,3316.2,3316.0,0.01087652]
[1642386973796,0.00113685,3316.2,3316.0,1.26506036]
[1642386975048,0.00113685,3316.2,3316.1,1.26484518]
[1642386979705,0.00113685,3316.2,3316.1,1.27788256]
[1642386979906,0.00113685,3316.2,3316.1,10.92788256]
[1642386982550,0.00113685,3316.2,3316.1,13.50744622]
[1642386984150,0.00113685,3316.2,3316.1,14.50744622]
[1642386984350,7.305,3316.8,3316.2,11.75]
[1642386984550,7.305,3316.8,3316.3,4.29170115]
[1642386984750,7.305,3316.8,3316.3,4.89449755]
[1642386984751,0.00284212,3316.7,3316.3,4.89449755]
[1642386984950,0.00284212,3316.7,3316.4,0.75349]
[1642386985149,0.00227369,3316.6,3316.5,2.92556792]
[1642386985446,0.00227369,3316.6,3316.5,4.29516581]
[1642386985635,0.00227369,3316.6,3316.5,5.59516581]
[1642386985832,0.00227369,3316.6,3316.5,16.04516581]
[1642386987034,7.25727369,3316.8,3316.6,8.55]
[1642386987234,7.25727369,3316.8,3316.7,2.60944808]
[1642386987635,7.25841054,3316.8,3316.5,7.3728743]
[1642386987834,7.25841054,3316.8,3316.6,1.0]
[1642386988033,7.25841054,3316.8,3316.7,5.66071242]
[1642386988836,7.25841054,3316.8,3316.7,2.41071242]
[1642386989045,7.25841054,3316.8,3316.6,3.57956366]
[1642386989246,7.25841054,3316.8,3316.7,2.38848353]
[1642386989647,7.25841054,3316.8,3316.6,4.96793772]
[1642386989846,7.25841054,3316.8,3316.7,2.46529923]
[1642386990247,7.25841054,3316.8,3316.7,0.01295074]
[1642386993799,7.25841054,3316.8,3316.7,9.16117329]
[1642386994804,7.25841054,3316.8,3316.7,9.15747308]
[1642386995201,7.25841054,3316.8,3316.7,11.73682914]
[1642386995804,5.169,3317.5,3316.8,11.75]
[1642386996011,5.169,3317.5,3316.9,4.38195972]
[1642386996204,0.00341054,3317.4,3316.9,5.3552001]
[1642386996650,0.00284212,3317.3,3316.9,5.3552001]
[1642386997045,9.1027,3318.0,3316.9,5.3552001]
[1642386997046,0.0022737,3317.2,3317.0,1.2909547]
[1642386997345,9.1027,3318.0,3317.1,2.7349943]
[1642386997546,9.1027,3318.0,3317.9,1.25358639]
[1642386998046,5.169,3318.0,3317.9,1.25358639]
[1642386998446,7.39304101,3318.7,3318.0,4.2]
[1642386998447,0.45957311,3318.7,3318.0,4.2]
[1642386998652,0.45957311,3318.7,3318.1,2.70242166]
[1642386998847,3.7434,3318.9,3318.1,2.70242166]
[1642386998848,0.0096632,3318.5,3318.1,2.70242166]